fUSD/lending_fUSD_20250219
["ID","MTS","AMOUNT","RATE_DAILY","PERIOD"]
[353598677,1739956255422,-500.0,0.0001378,2]
[353598678,1739956255431,-500.0,0.0001378,2]
[353598679,1739956255440,-514.3,0.0001378,2]
[353598680,1739956255450,-1045.26,0.0001378,2]
[353598681,1739956255459,-500.0,0.0001378,2]
[353598682,1739956255468,-500.0,0.0001378,2]
[353598683,1739956255478,-573.69,0.0001378,2]
[353598684,1739956255487,-500.0,0.0001378,2]
[353598685,1739956255496,-1227.93,0.0001378,2]
[353598686,1739956255505,-500.0,0.0001378,2]
[353598687,1739956255515,-500.0,0.0001378,2]
[353598688,1739956255524,-500.0,0.0001378,2]
[353598689,1739956255533,-504.13040406,0.0001378,2]
[353598690,1739956255542,-500.0,0.0001378,2]
[353598691,1739956255552,-1476.92,0.0001378,2]
[353598692,1739956255561,-194.16669285,0.0001378,2]
[353598693,1739956255570,-1232.38,0.0001378,2]
[353598694,1739956255579,-710.37,0.0001378,2]
[353598695,1739956255590,-500.0,0.0001378,2]
[353598696,1739956255601,-812.83,0.0001378,2]
[353598697,1739956255613,-519.67,0.0001378,2]
[353598698,1739956255627,-500.0,0.0001378,2]
[353598699,1739956255644,-500.0,0.0001378,2]
[353598700,1739956255654,-553.7,0.0001378,2]
[353598701,1739956255664,-1409.08,0.0001378,2]
[353598702,1739956255673,-197.15176078,0.0001378,2]
[353598703,1739956255683,-629.34,0.0001378,2]
[353598704,1739956255693,-609.28,0.0001378,2]
[353598705,1739956255703,-500.0,0.0001378,2]
[353598706,1739956255713,-500.0,0.0001378,2]
[353598707,1739956255723,-520.3847447,0.0001378,2]
[353598708,1739956255732,-1704.97,0.0001378,2]
[353598709,1739956255742,-1698.56,0.0001378,2]
[353598710,1739956255752,-500.0,0.0001378,2]
[353598711,1739956255763,-500.0,0.0001378,2]
[353598712,1739956255773,-500.0,0.0001378,2]
[353598713,1739956255783,-500.0,0.0001378,2]
[353598714,1739956255793,-567.91,0.0001378,2]
[353598715,1739956255804,-598.55,0.0001378,2]
[353598716,1739956255814,-977.71,0.0001378,2]
[353598717,1739956255824,-687.18,0.0001378,2]
[353598718,1739956255834,-500.0,0.0001378,2]
[353598719,1739956255844,-896.35,0.0001378,2]
[353598720,1739956255854,-985.96,0.0001378,2]
[353598721,1739956255865,-1293.22,0.0001378,2]
[353598722,1739956255874,-589.01,0.0001378,2]
[353598723,1739956255884,-859.57,0.0001378,2]
[353598724,1739956255893,-3283.42,0.0001378,2]
[353598725,1739956255903,-563.44,0.0001378,2]
[353598726,1739956255912,-500.0,0.0001378,2]
[353598727,1739956255922,-500.0,0.0001378,2]
[353598728,1739956255931,-4171.55,0.0001378,2]
[353598729,1739956255941,-500.0,0.0001378,2]
[353598730,1739956255951,-500.0,0.0001378,2]
[353598731,1739956255960,-1629.5,0.0001378,2]
[353598732,1739956255970,-500.0,0.0001378,2]
[353598733,1739956255980,-1409.56,0.0001378,2]
[353598734,1739956255990,-516.57,0.0001378,2]
[353598735,1739956255999,-500.0,0.0001378,2]
[353598736,1739956256009,-2547.83,0.0001378,2]
[353598737,1739956256018,-687.63,0.0001378,2]
[353598738,1739956256027,-500.0,0.0001378,2]
[353598739,1739956256037,-500.0,0.0001378,2]
[353598740,1739956256046,-500.0,0.0001378,2]
[353598741,1739956256056,-2003.37,0.0001378,2]
[353598742,1739956256067,-2418.45,0.0001378,2]
[353598743,1739956256077,-1218.3,0.0001378,2]
[353598744,1739956256086,-500.0,0.0001378,2]
[353598745,1739956256096,-807.83,0.0001378,2]
[353598746,1739956256106,-807.85,0.0001378,2]
[353598747,1739956256116,-500.0,0.0001378,2]
[353598748,1739956256125,-988.01,0.0001378,2]
[353598749,1739956256135,-955.82,0.0001378,2]
[353598750,1739956256144,-500.0,0.0001378,2]
[353598751,1739956256154,-1742.55,0.0001378,2]
[353598752,1739956256163,-500.0,0.0001378,2]
[353598753,1739956256174,-500.0,0.0001378,2]
[353598754,1739956256184,-500.0,0.0001378,2]
[353598755,1739956256194,-500.0,0.0001378,2]
[353598756,1739956256203,-2045.62,0.0001378,2]
[353598757,1739956256212,-1883.77,0.0001378,2]
[353598758,1739956256221,-571.51,0.0001378,2]
[353598759,1739956256231,-500.0,0.0001378,2]
[353598760,1739956256240,-500.0,0.0001378,2]
[353598761,1739956256249,-500.0,0.0001378,2]
[353598762,1739956256258,-884.45,0.0001378,2]
[353598763,1739956256268,-796.14,0.0001378,2]
[353598764,1739956256277,-654.45,0.0001378,2]
[353598765,1739956256286,-500.0,0.0001378,2]
[353598766,1739956256298,-500.0,0.0001378,2]
[353598767,1739956256308,-835.39,0.0001378,2]
[353598768,1739956256318,-2139.46,0.0001378,2]
[353598769,1739956256327,-1249.77,0.0001378,2]
[353598770,1739956256337,-516.16,0.0001378,2]
[353598771,1739956256347,-2172.72,0.0001378,2]
[353598772,1739956256356,-580.58,0.0001378,2]
[353598773,1739956256366,-500.0,0.0001378,2]
[353598774,1739956256375,-3291.96,0.0001378,2]
[353598775,1739956256384,-1238.85,0.0001378,2]
[353598776,1739956256393,-729.72,0.0001378,2]
[353598777,1739956256403,-7200.05,0.0001378,2]
[353598778,1739956256412,-500.0,0.0001378,2]
[353598779,1739956256421,-1375.31,0.0001378,2]
[353598780,1739956256430,-386.918504,0.0001378,2]
[353598781,1739956256440,-2106.07,0.0001378,2]
[353598782,1739956256449,-500.0,0.0001378,2]
[353598783,1739956256458,-523.01,0.0001378,2]
[353598784,1739956256467,-386.918497,0.0001378,2]
[353598785,1739956256476,-500.0,0.0001378,2]
[353598786,1739956256486,-1089.87,0.0001378,2]
[353598787,1739956256495,-500.0,0.0001378,2]
[353598788,1739956256504,-955.81,0.0001378,2]
[353598789,1739956256514,-500.0,0.0001378,2]
[353598790,1739956256523,-1081.77,0.0001378,2]
[353598791,1739956256532,-500.0,0.0001378,2]
[353598792,1739956256542,-2019.56,0.0001378,2]
[353598793,1739956256551,-1314.5,0.0001378,2]
[353598794,1739956256560,-780.11,0.0001378,2]
[353598795,1739956256570,-1667.79,0.0001378,2]
[353598796,1739956256580,-828.1,0.0001378,2]
[353598797,1739956256593,-833.52,0.0001378,2]
[353598798,1739956256603,-500.0,0.0001378,2]
[353598799,1739956256612,-775.61,0.0001378,2]
[353598800,1739956256621,-622.67,0.0001378,2]
[353598801,1739956256631,-505.86,0.0001378,2]
[353598802,1739956256640,-500.0,0.0001378,2]
[353598803,1739956256649,-500.0,0.0001378,2]
[353598804,1739956256658,-500.0,0.0001378,2]
[353598805,1739956256669,-1495.56,0.0001378,2]
[353598806,1739956256678,-500.0,0.0001378,2]
[353598807,1739956256687,-773.49,0.0001378,2]
[353598808,1739956256696,-1346.01,0.0001378,2]
[353598809,1739956256706,-500.0,0.0001378,2]
[353598810,1739956256715,-500.0,0.0001378,2]
[353598811,1739956256725,-965.02,0.0001378,2]
[353598812,1739956256735,-500.0,0.0001378,2]
[353598813,1739956256744,-500.0,0.0001378,2]
[353598814,1739956256754,-3128.52,0.0001378,2]
[353598815,1739956256763,-500.0,0.0001378,2]
[353598816,1739956256773,-2657.84,0.0001378,2]
[353598817,1739956256782,-695.68,0.0001378,2]
[353598818,1739956256791,-2583.09,0.0001378,2]
[353598819,1739956256801,-500.0,0.0001378,2]
[353598820,1739956256810,-500.0,0.0001378,2]
[353598821,1739956256819,-1109.09,0.0001378,2]
[353598822,1739956256828,-500.0,0.0001378,2]
[353598823,1739956256838,-1963.13,0.0001378,2]
[353598824,1739956256847,-1824.72,0.0001378,2]
[353598825,1739956256857,-769.56,0.0001378,2]
[353598826,1739956256866,-500.0,0.0001378,2]
[353598827,1739956256876,-500.0,0.0001378,2]
[353598828,1739956256885,-2385.16,0.0001378,2]
[353598829,1739956256895,-500.0,0.0001378,2]
[353598830,1739956256905,-500.0,0.0001378,2]
[353598831,1739956256915,-500.0,0.0001378,2]
[353598832,1739956256924,-840.46,0.0001378,2]
[353598833,1739956256934,-500.0,0.0001378,2]
[353598834,1739956256943,-1643.54,0.0001378,2]
[353598835,1739956256953,-2523.39,0.0001378,2]
[353598836,1739956256963,-2175.35,0.0001378,2]
[353598837,1739956256973,-615.78,0.0001378,2]
[353598838,1739956256986,-500.0,0.0001378,2]
[353598839,1739956256996,-2986.0,0.0001378,2]
[353598840,1739956257007,-500.0,0.0001378,2]
[353598841,1739956257017,-1739.78,0.0001378,2]
[353598842,1739956257027,-500.0,0.0001378,2]
[353598843,1739956257036,-971.68,0.0001378,2]
[353598844,1739956257046,-500.0,0.0001378,2]
[353598845,1739956257055,-500.0,0.0001378,2]
[353598846,1739956257065,-2511.52,0.0001378,2]
[353598847,1739956257075,-500.0,0.0001378,2]
[353598848,1739956257084,-500.0,0.0001378,2]
[353598849,1739956257094,-914.34,0.0001378,2]
[353598850,1739956257103,-1390.15,0.0001378,2]
[353598851,1739956257113,-713.77,0.0001378,2]
[353598852,1739956257122,-500.0,0.0001378,2]
[353598853,1739956257132,-500.0,0.0001378,2]
[353598854,1739956257141,-500.0,0.0001378,2]
[353598855,1739956257152,-2655.23,0.0001378,2]
[353598856,1739956257161,-2440.93,0.0001378,2]
[353598857,1739956257171,-1194.06,0.0001378,2]
[353598858,1739956257181,-500.0,0.0001378,2]
[353598859,1739956257191,-500.0,0.0001378,2]
[353598860,1739956257200,-1764.87,0.0001378,2]
[353598861,1739956257210,-900.61,0.0001378,2]
[353598862,1739956257219,-694.79,0.0001378,2]
[353598863,1739956257231,-521.02,0.0001378,2]
[353598864,1739956257241,-1436.92,0.0001378,2]
[353598865,1739956257250,-2465.89,0.0001378,2]
[353598866,1739956257260,-500.0,0.0001378,2]
[353598867,1739956257269,-5648.32,0.0001378,2]
[353598868,1739956257279,-1247.16,0.0001378,2]
[353598869,1739956257288,-1891.36,0.0001378,2]
[353598870,1739956257298,-1421.58,0.0001378,2]
[353598871,1739956257308,-1775.36,0.0001378,2]
[353598872,1739956257317,-500.0,0.0001378,2]
[353598873,1739956257327,-500.0,0.0001378,2]
[353598874,1739956257338,-659.58,0.0001378,2]
[353598875,1739956257349,-2183.33,0.0001378,2]
[353598876,1739956257358,-500.0,0.0001378,2]
[353598877,1739956257368,-726.93,0.0001378,2]
[353598878,1739956257377,-500.0,0.0001378,2]
[353598879,1739956257386,-500.0,0.0001378,2]
[353598880,1739956257396,-500.0,0.0001378,2]
[353598881,1739956257406,-500.0,0.0001378,2]
[353598882,1739956257416,-500.0,0.0001378,2]
[353598883,1739956257425,-500.0,0.0001378,2]
[353598884,1739956257435,-500.0,0.0001378,2]
[353598885,1739956257445,-500.0,0.0001378,2]
[353598886,1739956257455,-500.0,0.0001378,2]
[353598887,1739956257465,-1670.07,0.0001378,2]
[353598888,1739956257476,-510.60029744,0.0001378,2]
[353598889,1739956257485,-500.0,0.0001378,2]
[353598890,1739956257495,-2578.58,0.0001378,2]
[353598891,1739956257505,-1242.15,0.0001378,2]
[353598892,1739956257515,-500.0,0.0001378,2]
[353598893,1739956257525,-2434.23,0.0001378,2]
[353598894,1739956257535,-515.44,0.0001378,2]
[353598895,1739956257544,-500.0,0.0001378,2]
[353598896,1739956257554,-1725.38,0.0001378,2]
[353598897,1739956257563,-500.0,0.0001378,2]
[353598898,1739956257573,-535.58,0.0001378,2]
[353598899,1739956257583,-604.18782229,0.0001378,2]
[353598900,1739956257601,-754.45,0.0001378,2]
[353598901,1739956257611,-590.45,0.0001378,2]
[353598902,1739956257622,-500.0,0.0001378,2]
[353598903,1739956257631,-500.0,0.0001378,2]
[353598904,1739956257641,-1863.3,0.0001378,2]
[353598905,1739956257651,-527.55119751,0.0001378,2]
[353598906,1739956257660,-500.0,0.0001378,2]
[353598907,1739956257670,-500.0,0.0001378,2]
[353598908,1739956257682,-1302.69,0.0001378,2]
[353598909,1739956257692,-500.0,0.0001378,2]
[353598910,1739956257701,-611.77,0.0001378,2]
[353598911,1739956257711,-500.0,0.0001378,2]
[353598912,1739956257721,-1058.49,0.0001378,2]
[353598913,1739956257731,-3558.82,0.0001378,2]
[353598914,1739956257741,-500.0,0.0001378,2]
[353598915,1739956257751,-500.0,0.0001378,2]
[353598916,1739956257761,-1438.74,0.0001378,2]
[353598917,1739956257770,-500.0,0.0001378,2]
[353598918,1739956257780,-500.0,0.0001378,2]
[353598919,1739956257790,-1419.24,0.0001378,2]
[353598920,1739956257799,-543.01,0.0001378,2]
[353598921,1739956257809,-580.26,0.0001378,2]
[353598922,1739956257819,-500.0,0.0001378,2]
[353598923,1739956257830,-500.0,0.0001378,2]
[353598924,1739956257843,-1560.47,0.0001378,2]
[353598925,1739956257853,-500.0,0.0001378,2]
[353598926,1739956257863,-2810.29,0.0001378,2]
[353598927,1739956257872,-683.17,0.0001378,2]
[353598928,1739956257882,-2267.7,0.0001378,2]
[353598929,1739956257891,-634.82,0.0001378,2]
[353598930,1739956257901,-500.0,0.0001378,2]
[353598931,1739956257910,-712.49,0.0001378,2]
[353598932,1739956257920,-880.44,0.0001378,2]
[353598933,1739956257930,-500.0,0.0001378,2]
[353598934,1739956257940,-1222.91,0.0001378,2]
[353598935,1739956257950,-500.0,0.0001378,2]
[353598936,1739956257959,-500.0,0.0001378,2]
[353598937,1739956257969,-774.88,0.0001378,2]
[353598938,1739956257979,-1445.39,0.0001378,2]
[353598939,1739956257989,-1378.54,0.0001378,2]
[353598940,1739956257999,-500.0,0.0001378,2]
[353598941,1739956258009,-500.0,0.0001378,2]
[353598942,1739956258019,-2049.49,0.0001378,2]
[353598943,1739956258028,-3955.33,0.0001378,2]
[353598944,1739956258038,-500.0,0.0001378,2]
[353598945,1739956258047,-1851.11,0.0001378,2]
[353598946,1739956258058,-500.0,0.0001378,2]
[353598947,1739956258067,-500.0,0.0001378,2]
[353598948,1739956258077,-500.0,0.0001378,2]
[353598949,1739956258086,-626.1,0.0001378,2]
[353598950,1739956258097,-1116.85,0.0001378,2]
[353598951,1739956258107,-500.0,0.0001378,2]
[353598952,1739956258116,-500.0,0.0001378,2]
[353598953,1739956258126,-541.04,0.0001378,2]
[353598954,1739956258135,-500.0,0.0001378,2]
[353598955,1739956258145,-500.0,0.0001378,2]
[353598956,1739956258155,-500.0,0.0001378,2]
[353598957,1739956258165,-500.0,0.0001378,2]
[353598958,1739956258175,-2535.97,0.0001378,2]
[353598959,1739956258185,-909.68,0.0001378,2]
[353598960,1739956258195,-238.57182063,0.0001378,2]
[353598961,1739956258205,-500.0,0.0001378,2]
[353598962,1739956258215,-1008.69,0.0001378,2]
[353598963,1739956258226,-500.0,0.0001378,2]
[353598964,1739956258235,-566.87,0.0001378,2]
[353598965,1739956258245,-500.0,0.0001378,2]
[353598966,1739956258255,-500.0,0.0001378,2]
[353598967,1739956258265,-500.0,0.0001378,2]
[353598968,1739956258275,-500.0,0.0001378,2]
[353598969,1739956258285,-500.0,0.0001378,2]
[353598970,1739956258295,-2442.14,0.0001378,2]
[353598971,1739956258306,-1717.28,0.0001378,2]
[353598972,1739956258315,-725.34,0.0001378,2]
[353598973,1739956258325,-500.0,0.0001378,2]
[353598974,1739956258335,-762.52,0.0001378,2]
[353598975,1739956258345,-500.0,0.0001378,2]
[353598976,1739956258355,-763.77,0.0001378,2]
[353598977,1739956258364,-2355.63,0.0001378,2]
[353598978,1739956258373,-500.0,0.0001378,2]
[353598979,1739956258382,-1349.03,0.0001378,2]
[353598980,1739956258390,-500.0,0.0001378,2]
[353598981,1739956258400,-620.68,0.0001378,2]
[353598982,1739956258409,-500.0,0.0001378,2]
[353598983,1739956258420,-2226.08,0.0001378,2]
[353598984,1739956258430,-3256.41,0.0001378,2]
[353598985,1739956258439,-1476.22,0.0001378,2]
[353598986,1739956258450,-778.48,0.0001378,2]
[353598987,1739956258460,-504.93,0.0001378,2]
[353598988,1739956258470,-2368.0,0.0001378,2]
[353598989,1739956258483,-4712.41,0.0001378,2]
[353598990,1739956258492,-500.0,0.0001378,2]
[353598991,1739956258502,-574.48967658,0.0001378,2]
[353598992,1739956258512,-1792.66,0.0001378,2]
[353598993,1739956258522,-500.0,0.0001378,2]
[353598994,1739956258532,-500.0,0.0001378,2]
[353598995,1739956258542,-500.0,0.0001378,2]
[353598996,1739956258552,-1074.11,0.0001378,2]
[353598997,1739956258562,-500.0,0.0001378,2]
[353598998,1739956258571,-500.0,0.0001378,2]
[353598999,1739956258581,-625.27,0.0001378,2]
[353599000,1739956258595,-500.0,0.0001378,2]
[353599001,1739956258605,-1195.25,0.0001378,2]
[353599002,1739956258616,-500.0,0.0001378,2]
[353599003,1739956258626,-1560.59,0.0001378,2]
[353599004,1739956258636,-500.0,0.0001378,2]
[353599005,1739956258646,-500.0,0.0001378,2]
[353599006,1739956258655,-1399.12,0.0001378,2]
[353599007,1739956258665,-500.0,0.0001378,2]
[353599008,1739956258675,-500.0,0.0001378,2]
[353599009,1739956258685,-2043.22,0.0001378,2]
[353599010,1739956258694,-500.0,0.0001378,2]
[353599011,1739956258704,-500.0,0.0001378,2]
[353599012,1739956258714,-633.81,0.0001378,2]
[353599013,1739956258724,-500.0,0.0001378,2]
[353599014,1739956258734,-500.0,0.0001378,2]
[353599015,1739956258743,-500.0,0.0001378,2]
[353599016,1739956258754,-2117.99,0.0001378,2]
[353599017,1739956258764,-500.0,0.0001378,2]
[353599018,1739956258774,-740.74,0.0001378,2]
[353599019,1739956258783,-975.0,0.0001378,2]
[353599020,1739956258793,-500.0,0.0001378,2]
[353599021,1739956258803,-562.62,0.0001378,2]
[353599022,1739956258813,-500.0,0.0001378,2]
[353599023,1739956258823,-500.0,0.0001378,2]
[353599024,1739956258833,-3662.43,0.0001378,2]
[353599025,1739956258843,-2535.77,0.0001378,2]
[353599026,1739956258853,-500.0,0.0001378,2]
[353599027,1739956258863,-2761.55,0.0001378,2]
[353599028,1739956258872,-844.44,0.0001378,2]
[353599029,1739956258882,-1707.3,0.0001378,2]
[353599030,1739956258892,-809.18,0.0001378,2]
[353599031,1739956258902,-709.61,0.0001378,2]
[353599032,1739956258912,-1672.11,0.0001378,2]
[353599033,1739956258923,-2116.56,0.0001378,2]
[353599034,1739956258932,-504.98,0.0001378,2]
[353599035,1739956258942,-1039.76,0.0001378,2]
[353599036,1739956258952,-500.0,0.0001378,2]
[353599037,1739956258963,-1513.02,0.0001378,2]
[353599038,1739956258973,-1619.08,0.0001378,2]
[353599039,1739956258983,-500.0,0.0001378,2]
[353599040,1739956258993,-6306.71,0.0001378,2]
[353599041,1739956259004,-1712.82,0.0001378,2]
[353599042,1739956259211,-500.0,0.0001378,2]
[353599043,1739956259220,-1088.29,0.0001378,2]
[353599044,1739956259231,-1408.12,0.0001378,2]
[353599045,1739956259240,-1380.33,0.0001378,2]
[353599046,1739956259249,-538.95,0.0001378,2]
[353599047,1739956259259,-500.0,0.0001378,2]
[353599048,1739956259268,-993.64390977,0.00013819,2]
[353599049,1739956259279,-178.9680553,0.00013819,2]
[353599050,1739956259288,-1792.43119849,0.00013836,2]
[353599051,1739956259298,-290.1658384,0.00013845,2]
[353599052,1739956259307,-2005.09,0.00013862,2]
[353599053,1739956259316,-2789.62,0.00013862,2]
[353599054,1739956259326,-2789.62,0.00013862,2]
[353599055,1739956259335,-500.0,0.00013863,2]
[353599056,1739956259344,-500.0,0.00013863,2]
[353599057,1739956259353,-500.0,0.00013863,2]
[353599058,1739956259363,-500.0,0.00013863,2]
[353599059,1739956259372,-500.0,0.00013863,2]
[353599060,1739956259381,-500.0,0.00013863,2]
[353599061,1739956259390,-500.0,0.00013863,2]
[353599062,1739956259399,-500.0,0.00013863,2]
[353599063,1739956259409,-884.18,0.00013863,2]
[353599064,1739956259418,-500.0,0.00013863,2]
[353599065,1739956259427,-622.99076025,0.00013863,2]
[353599066,1739956259436,-500.0,0.00013863,2]
[353599067,1739956259445,-520.34955766,0.00013863,2]
[353599068,1739956259454,-500.0,0.00013863,2]
[353599069,1739956259463,-1946.584212,0.00013863,2]
[353599070,1739956259472,-513.08589398,0.00013863,2]
[353599071,1739956259482,-500.0,0.00013863,2]
[353599072,1739956259492,-500.0,0.00013863,2]
[353599073,1739956259501,-834.85,0.00013863,2]
[353599074,1739956259511,-500.0,0.00013863,2]
[353599075,1739956259520,-1470.743788,0.00013863,2]
[353599076,1739956259529,-500.0,0.00013863,2]
[353599077,1739956259538,-500.0,0.00013863,2]
[353599078,1739956259548,-500.0,0.00013863,2]
[353599079,1739956259557,-711.77,0.00013863,2]
[353599080,1739956259567,-691.82,0.00013863,2]
[353599081,1739956259577,-500.0,0.00013863,2]
[353599082,1739956259587,-500.0,0.00013863,2]
[353599083,1739956259601,-500.0,0.00013863,2]
[353599084,1739956259611,-775.45,0.00013863,2]
[353599085,1739956259621,-500.0,0.00013863,2]
[353599086,1739956259630,-500.0,0.00013863,2]
[353599087,1739956259640,-500.0,0.00013863,2]
[353599088,1739956259650,-500.0,0.00013863,2]
[353599089,1739956259659,-500.0,0.00013863,2]
[353599090,1739956259669,-536.53,0.00013863,2]
[353599091,1739956259679,-500.0,0.00013863,2]
[353599092,1739956259688,-636.56,0.00013863,2]
[353599093,1739956259699,-500.0,0.00013863,2]
[353599094,1739956259709,-500.0,0.00013863,2]
[353599095,1739956259719,-500.0,0.00013863,2]
[353599096,1739956259729,-672.21,0.00013863,2]
[353599097,1739956259739,-500.0,0.00013863,2]
[353599098,1739956259749,-500.0,0.00013863,2]
[353599099,1739956259758,-500.0,0.00013863,2]
[353599100,1739956259768,-500.0,0.00013863,2]
[353599101,1739956259777,-891.66,0.00013863,2]
[353599102,1739956259786,-690.27,0.00013863,2]
[353599103,1739956259796,-500.0,0.00013863,2]
[353599104,1739956259805,-500.0,0.00013863,2]
[353599105,1739956259815,-500.0,0.00013863,2]
[353599106,1739956259825,-411.76254545,0.00013863,2]
[353599107,1739956259835,-500.0,0.00013863,2]
[353599108,1739956259845,-500.0,0.00013863,2]
[353599109,1739956259855,-500.0,0.00013863,2]
[353599110,1739956259865,-500.0,0.00013863,2]
[353599111,1739956259874,-500.0,0.00013863,2]
[353599112,1739956259884,-500.0,0.00013863,2]
[353599113,1739956259894,-500.0,0.00013863,2]
[353599114,1739956259904,-571.03,0.00013863,2]
[353599115,1739956259914,-500.0,0.00013863,2]
[353599116,1739956259924,-500.0,0.00013863,2]
[353599117,1739956259933,-564.48,0.00013863,2]
[353599118,1739956259943,-731.53,0.00013863,2]
[353599119,1739956259954,-500.0,0.00013863,2]
[353599120,1739956259964,-500.0,0.00013863,2]
[353599121,1739956259974,-500.0,0.00013863,2]
[353599122,1739956259984,-1613.57,0.00013863,2]
[353599123,1739956259993,-612.22,0.00013863,2]
[353599124,1739956260003,-500.0,0.00013863,2]
[353599125,1739956260013,-500.0,0.00013863,2]
[353599126,1739956260023,-500.0,0.00013863,2]
[353599127,1739956260032,-1097.61063701,0.00013863,2]
[353599128,1739956260042,-500.0,0.00013863,2]
[353599129,1739956260052,-528.05,0.00013863,2]
[353599130,1739956260062,-500.0,0.00013863,2]
[353599131,1739956260071,-500.0,0.00013863,2]
[353599132,1739956260080,-500.0,0.00013863,2]
[353599133,1739956260089,-500.0,0.00013863,2]
[353599134,1739956260099,-500.0,0.00013863,2]
[353599135,1739956260109,-520.77,0.00013863,2]
[353599136,1739956260119,-500.0,0.00013863,2]
[353599137,1739956260130,-500.0,0.00013863,2]
[353599138,1739956260139,-593.34,0.00013863,2]
[353599139,1739956260149,-500.0,0.00013863,2]
[353599140,1739956260159,-500.0,0.00013863,2]
[353599141,1739956260168,-500.0,0.00013863,2]
[353599142,1739956260177,-500.0,0.00013863,2]
[353599143,1739956260187,-899.15,0.00013863,2]
[353599144,1739956260197,-500.0,0.00013863,2]
[353599145,1739956260207,-500.0,0.00013863,2]
[353599146,1739956260216,-506.02,0.00013863,2]
[353599147,1739956260226,-500.0,0.00013863,2]
[353599148,1739956260236,-500.0,0.00013863,2]
[353599149,1739956260245,-500.0,0.00013863,2]
[353599150,1739956260255,-500.0,0.00013863,2]
[353599151,1739956260265,-500.0,0.00013863,2]
[353599152,1739956260275,-500.0,0.00013863,2]
[353599153,1739956260284,-500.0,0.00013863,2]
[353599154,1739956260294,-599.19,0.00013863,2]
[353599155,1739956260304,-766.05,0.00013863,2]
[353599156,1739956260312,-500.0,0.00013863,2]
[353599157,1739956260321,-564.55735189,0.00013863,2]
[353599158,1739956260331,-500.0,0.00013863,2]
[353599159,1739956260340,-500.0,0.00013863,2]
[353599160,1739956260350,-500.0,0.00013863,2]
[353599161,1739956260359,-500.0,0.00013863,2]
[353599162,1739956260369,-500.0,0.00013863,2]
[353599163,1739956260378,-1062.29,0.00013863,2]
[353599164,1739956260387,-500.0,0.00013863,2]
[353599165,1739956260396,-500.0,0.00013863,2]
[353599166,1739956260406,-500.0,0.00013863,2]
[353599167,1739956260415,-640.39,0.00013863,2]
[353599168,1739956260425,-500.0,0.00013863,2]
[353599169,1739956260435,-310.17197191,0.00013863,2]
[353599170,1739956260445,-500.0,0.00013863,2]
[353599171,1739956260455,-500.0,0.00013863,2]
[353599172,1739956260464,-500.0,0.00013863,2]
[353599173,1739956260474,-946.45,0.00013863,2]
[353599174,1739956260484,-500.0,0.00013863,2]
[353599175,1739956260493,-500.0,0.00013863,2]
[353599176,1739956260503,-500.0,0.00013863,2]